Cogmind - Beta 11.1 @@@ ROGUE MODE // 2022.05.22 @ 00:52:17 Player: Lyra Result: Destroyed self with Potential Cannon Performance ------------- Evolutions (7) 3500 Regions Visited (31) 6200 Robots Destroyed (143) 715 Value Destroyed (5704) 5704 Prototype IDs (51) 1020 Alien Tech Used (1) 200 Bonus (3949) 3949 TOTAL SCORE: 21288 Bonus ------- High Alert Combat Kills 434 Follower Combat Kills 2849 Entered Garrisons 200 Used RIF Installer 500 Met Data Miner 300 Met Zhirov 300 Friendly Fire -634 Cogmind --------- Core Integrity 0/1300 Matter 244/300 Energy 383/700 System Corruption 21% Temperature Cool (20) Movement Hovering (240) Ox3 Location -3/Testing Parts ------- > --- POWER (2) -------- (None) > --- PROPULSION (9) --- Improved Antigrav System > --- UTILITY (8) ------ Experimental Energy Well Experimental Field Recycling Unit > --- WEAPON (2) ------- Potential Cannon > --- INVENTORY (5) ---- (None) Peak State ------------ > --- POWER ------------ Light Fission Core Antimatter Reactor > --- PROPULSION ------- Linear Gravjet Improved Antigrav System Nuclear Pulse Thruster Nuclear Pulse Thruster Cooled Nuclear Pulse Thruster Cooled Nuclear Pulse Thruster Cooled Nuclear Pulse Thruster > --- UTILITY ---------- Advanced Energy Well Advanced Weight Redist. System Enhanced Optical Array Long-range Sensor Array Advanced Signal Interpreter Nanoactuators Nanoactuators Improved Reaction Control System > --- WEAPON ----------- Advanced Remote Datajack Spear > --- INVENTORY -------- Nanoactuators Heart of Steel CR-A16's Behemoth Slayer [Rating: 119] Favorites ----------- Power Cooled Ion Engine Engine Cooled Ion Engine Power Core Light Fission Core Reactor Micro Antimatter Reactor Propulsion Carbon-fiber Leg Treads Heavy Treads Leg Carbon-fiber Leg Wheel Wheel Hover Unit Improved Hover Unit Flight Unit Cooled Nuclear Pulse Thruster Utility Advanced Signal Interpreter Device Structural Scanner Storage Large Storage Unit Processor Advanced Signal Interpreter Hackware Relay Coupler [NC] Protection Layered Medium Armor Plating Weapon Spear Energy Gun Heavy Beamcaster Energy Cannon EM Pulse Cannon Ballistic Gun Gauss Rifle Ballistic Cannon Light Cannon Launcher Smartbomb Launcher Special Weapon Advanced Remote Datajack Impact Weapon Gravity Flail Slashing Weapon Molecular Scythe Piercing Weapon Spear Special Melee Weapon Datajack Build | -11 -10 -10 -9 -9 -9 -9 -7 -7 -7 -7 -7 -7 -6 -6 -6 -6 -6 -6 -6 -5 -5 -5 -5 -5 -4 -4 -4 -4 -4 -3 -3 ------- Run | Scr Mat Min Mat Sto Gar Rec Fac Was Fac Low Low Zio Pro Fac Was Fac Low Low Dat Pro Fac Upp Upp Zhi Pro Fac Was Fac Ext Res Tes Slots Evolved 14 | . . . 2 . . . 4 . . . . . . 2 . . . . . . 2 . . . . 2 . . . 2 . Power 1 | . . . . . . . . . . . . . . . . . . . . . 1 . . . . . . . . . . Propulsion 7 | . . . . . . . 1 . . . . . . 2 . . . . . . 1 . . . . 1 . . . 2 . Utility 6 | . . . 2 . . . 3 . . . . . . . . . . . . . . . . . . 1 . . . . . Weapon . | . . . . . . . . . . . . . . . . . . . . . . . . . . . . . . . . Parts Attached 413 | 6 7 . 3 25 15 . 8 7 23 6 7 4 8 51 3 . 7 5 . 16 13 26 26 12 3 8 5 9 32 16 62 Power 42 | 1 . . . 1 2 . . . . . . . . 5 1 . . . . . 1 4 2 2 . 1 . 2 7 4 9 Engine 10 | 1 . . . 1 2 . . . . . . . . 3 . . . . . . . 2 . . . . . . 1 . . Core 21 | . . . . . . . . . . . . . . 2 . . . . . . 1 . 1 1 . . . . 5 3 8 Reactor 11 | . . . . . . . . . . . . . . . 1 . . . . . . 2 1 1 . 1 . 2 1 1 1 Propulsion 65 | 2 . . . 2 4 . . 2 8 . . 1 . 12 . . 1 . . . 1 3 2 3 . 2 2 4 5 2 9 Treads 4 | . . . . . . . . 2 1 . . . . . . . . . . . . . 1 . . . . . . . . Leg 22 | 2 . . . 2 4 . . . 6 . . 1 . 1 . . . . . . . 3 1 . . . . . . . 2 Wheel 2 | . . . . . . . . . . . . . . . . . . . . . . . . . . 1 . . . . 1 Hover 22 | . . . . . . . . . 1 . . . . 11 . . 1 . . . 1 . . . . 1 . 3 1 1 2 Flight 15 | . . . . . . . . . . . . . . . . . . . . . . . . 3 . . 2 1 4 1 4 Utility 178 | 1 1 . 3 11 3 . 6 3 11 3 . 2 3 20 1 . 3 1 . 4 6 9 15 5 3 4 3 3 16 10 28 Device 112 | . . . 3 4 1 . 2 . 5 1 . . 1 13 1 . 2 1 . 3 3 8 11 3 2 3 2 2 12 6 23 Storage 21 | 1 1 . . . 1 . . . 1 . . . . 3 . . . . . . . . 2 1 . . 1 1 2 3 4 Processor 5 | . . . . . . . 1 . . 1 . . . 1 . . 1 . . . 1 . . . . . . . . . . Hackware 8 | . . . . . . . . . 2 . . . . 1 . . . . . . 2 . 1 . 1 1 . . . . . Protection 32 | . . . . 7 1 . 3 3 3 1 . 2 2 2 . . . . . 1 . 1 1 1 . . . . 2 1 1 Artifact . | . . . . . . . . . . . . . . . . . . . . . . . . . . . . . . . . Weapon 128 | 2 6 . . 11 6 . 2 2 4 3 7 1 5 14 1 . 3 4 . 12 5 10 7 2 . 1 . . 4 . 16 Energy Gun 27 | 1 4 . . 8 . . 1 1 2 1 3 . 1 1 . . . . . . . . 1 . . . . . . . 3 Energy Cannon 5 | . . . . 1 . . 1 . . . . . . . . . . . . . . . . . . . . . 1 . 2 Ballistic Gun 3 | 1 . . . . . . . . . . . . . 1 . . . . . . . . 1 . . . . . . . . Ballistic Cannon 21 | . 2 . . 2 4 . . . 1 1 2 . 2 4 . . . . . . . . . . . . . . . . 3 Launcher 19 | . . . . . 2 . . . . 1 2 . 1 2 . . 1 1 . 3 1 3 2 . . . . . . . . Special Weapon 21 | . . . . . . . . . 1 . . . . 3 . . 1 2 . 3 3 3 . 2 . 1 . . 2 . . Impact Weapon 4 | . . . . . . . . . . . . . . . . . . . . . . . . . . . . . . . 4 Slashing Weapon 1 | . . . . . . . . . . . . . . . . . . . . . . . . . . . . . . . 1 Piercing Weapon 26 | . . . . . . . . . . . . 1 1 3 1 . 1 1 . 6 1 4 3 . . . . . 1 . 3 Special Melee Weapon 1 | . . . . . . . . 1 . . . . . . . . . . . . . . . . . . . . . . . Unidentified Prototypes 31 | . . . . 5 . . . . 2 . . . . 1 . . . . . . 1 . . 4 . . 1 1 . 1 15 Corrupted Parts 7 | . . . . . . . . . . . . . . . 1 . . . . . . . . . . . 2 . 1 . 3 System Corruption 32 | . . . . . . . . . . . . . . . 3 . . . . . . . . . . . 12 . 1 . 16 Parts Lost 62 | . . . . 8 1 . 2 . . . . . 2 3 . . . . . . 5 2 6 . . . . 1 2 4 26 Power 2 | . . . . . . . . . . . . . . 1 . . . . . . . . . . . . . . 1 . . Propulsion 28 | . . . . 1 1 . . . . . . . 1 2 . . . . . . 5 1 3 . . . . . 1 1 12 Utility 22 | . . . . 3 . . 2 . . . . . 1 . . . . . . . . 1 2 . . . . 1 . 3 9 Weapon 10 | . . . . 4 . . . . . . . . . . . . . . . . . . 1 . . . . . . . 5 Highest Loss Streak 7 | . . . . 6 1 . 2 . . . . . 2 2 . . . . . . 2 2 5 . . . . 1 1 4 7 To Critical Strikes . | . . . . . . . . . . . . . . . . . . . . . . . . . . . . . . . . Average Slot Usage (%) 84 | . 85 85 92 95 98 100 90 84 84 99 98 99 98 88 100 100 99 99 100 99 81 72 64 71 70 82 81 98 93 88 56 Engine 4 | . 14 14 11 11 10 11 7 7 7 7 7 7 7 4 . . . . . . . 3 . . . . . . 1 . . Core 1 | . . . . . . . . . . . . . . . . . . . . . 2 . 4 3 5 5 5 5 4 2 1 Reactor 1 | . . . . . . . . . . . . . . . 6 6 6 6 6 6 5 4 2 5 . 2 . 4 . 3 . Treads 1 | . . . . . . . . 3 6 . . . . . . . . . . . . . 2 3 . . . . . . . Leg 9 | . 28 28 22 22 22 22 15 8 12 23 23 23 21 8 . . . . . . . 5 . . . . . . . . . Hover 6 | . . . . . . . . . . . . . . 18 33 33 33 33 33 33 21 5 . . . 5 5 9 9 2 4 Flight 3 | . . . . . . . . . . . . . . . . . . . . . . . . 6 17 15 18 26 26 38 18 Device 16 | . . . 25 17 11 11 23 19 15 23 23 23 21 18 20 20 20 20 20 20 9 10 15 15 17 22 25 24 27 23 12 Storage 6 | . 14 14 11 11 3 11 7 7 7 7 7 7 7 6 6 6 6 6 6 6 5 5 4 4 5 2 . . . 2 6 Processor 8 | . . . . . . . 7 7 1 7 7 7 7 6 6 6 9 13 13 13 15 17 17 17 17 15 15 15 6 4 3 Hackware 1 | . . . . . . . . . 4 . . . . 1 6 6 2 . . . 5 2 . . . . . . . . . Protection 8 | . . . . 11 29 22 15 14 12 15 15 14 16 12 6 6 6 6 6 6 1 2 . . . . . . 6 4 . Energy Gun 4 | . 10 28 22 18 1 . 5 5 9 6 10 8 6 1 2 . . . . . . . . . . . . . . . . Ballistic Cannon 3 | . 14 . . 2 19 22 5 . 3 6 2 . 4 3 . . . . . . . . . . . . . . . . . Special Weapon 1 | . . . . . . . . . 1 . . . . 1 6 6 5 5 6 5 4 4 . . . 5 5 5 2 . . Piercing Weapon 2 | . . . . . . . . . . . . 5 2 . 3 6 5 5 6 5 4 4 4 5 5 5 5 5 5 4 1 Naked Turns . | . . . . . . . . . . . . . . . . . . . . . . . . . . . . . . . . Heaviest Build 83 | 11 19 19 21 41 34 30 36 77 83 45 46 46 47 51 48 44 45 47 43 48 56 60 63 50 18 42 23 37 41 52 46 Greatest Support 90 | 20 20 20 26 32 32 32 32 90 90 45 45 47 47 53 50 50 53 44 44 44 53 30 70 70 27 27 39 48 48 61 55 Greatest Overweight (x) 12 | . . . . 2 1 . 1 1 1 . 1 1 1 5 . . . 1 . 1 5 8 12 8 . 2 . 1 3 . 2 Average Overweight (x) . | . . . . . . . . . . . . . . . . . . . . . . 1 1 . . . . . . . . Largest Inventory Capacity 15 | 8 10 10 10 10 10 10 10 10 10 10 10 10 10 15 15 15 15 15 15 15 15 15 15 15 5 5 5 5 5 15 15 Average Capacity 11 | 5 8 10 10 10 6 10 10 10 10 10 10 10 10 12 15 15 15 15 15 15 15 15 14 12 5 5 5 5 5 10 11 Most Carried 15 | . 9 10 9 10 10 10 10 10 10 10 10 10 10 15 15 15 15 15 15 15 15 15 15 15 5 5 5 5 5 13 15 Average Carried 10 | . 3 9 7 8 5 10 8 9 9 9 9 10 9 11 14 15 14 14 15 14 14 14 13 12 5 4 5 4 4 7 11 Final Capacity 15 | 8 10 10 10 10 10 10 10 10 10 10 10 10 10 15 15 15 15 15 15 15 15 15 15 5 5 5 5 5 5 15 5 Final Carried 15 | . 9 10 7 10 10 10 10 10 10 10 10 10 10 15 15 15 15 15 15 15 15 14 15 5 5 5 5 5 5 13 . Class Distribution -------------------- 28% | Mutant 20% | Scavenger-Mutant 20% | Assassin 7% | Scout 6% | Scavenger-Assassin 6% | Scavenger-Skirmisher 3% | Scavenger-Sprinter Dominant Class ---------------- Mutant | -10/Materials Mutant | -10/Mines Mutant | -9/Materials Mutant | -9/Storage Mutant | -9/Garrison Mutant | -9/Recycling Scavenger-Mutant | -7/Factory Scavenger-Mutant | -7/Waste Scavenger-Mutant | -7/Factory Scavenger-Skirmisher | -7/Lower Caves Scavenger-Skirmisher | -7/Lower Caves Scavenger-Assassin | -7/Zion Skirmisher | -6/Proximity Caves Mutant | -6/Factory Mutant | -6/Waste Mutant | -6/Factory Scout | -6/Lower Caves Scout | -6/Lower Caves Scout | -6/Data Miner Assassin | -5/Proximity Caves Assassin | -5/Factory Assassin | -5/Upper Caves Assassin | -5/Upper Caves Assassin | -5/Zhirov Scout | -4/Proximity Caves Scout | -4/Factory Scout | -4/Waste Ninja | -4/Factory Commander-Sprinter | -4/Extension Scavenger-Sprinter | -3/Research Scavenger-Sprinter | -3/Testing Resources | -11 -10 -10 -9 -9 -9 -9 -7 -7 -7 -7 -7 -7 -6 -6 -6 -6 -6 -6 -6 -5 -5 -5 -5 -5 -4 -4 -4 -4 -4 -3 -3 ----------- Run | Scr Mat Min Mat Sto Gar Rec Fac Was Fac Low Low Zio Pro Fac Was Fac Low Low Dat Pro Fac Upp Upp Zhi Pro Fac Was Fac Ext Res Tes Matter Collected 6793 | 154 204 . . 256 124 238 41 146 403 129 208 56 179 678 433 . 113 256 . 291 167 573 617 120 20 29 36 . 642 9 671 Remotely . | . . . . . . . . . . . . . . . . . . . . . . . . . . . . . . . . Salvage Created 5929 | . 168 . . 451 176 151 81 . 508 39 253 . 228 590 . . . 108 . 166 291 207 332 . . 29 . . 1297 107 747 Parts 277 | . 15 . . 32 17 6 3 . 22 5 4 . 17 18 . . . 6 . 16 5 13 12 . . 3 . . 53 4 26 Haulers Intercepted 8 | . 1 . . . . . 1 . 4 . . . . . . . . . . . . . . . . . . . . 1 1 Recyclers Shooed 7 | . 1 . . 1 . . . . . . . . . 2 . . . . . . 1 . . . . . . . 1 . 1 Parts Field Recycled . | . . . . . . . . . . . . . . . . . . . . . . . . . . . . . . . . Retrieved Matter . | . . . . . . . . . . . . . . . . . . . . . . . . . . . . . . . . Parts Self-Destructed 75 | . . . . . . . . . . 5 4 . 11 . . . 8 13 . 17 . 9 8 . . . . . . . . Prevented 5 | . . . . . . . . . . 1 . . . . . . . . . 4 . . . . . . . . . . . Kills | -11 -10 -10 -9 -9 -9 -9 -7 -7 -7 -7 -7 -7 -6 -6 -6 -6 -6 -6 -6 -5 -5 -5 -5 -5 -4 -4 -4 -4 -4 -3 -3 ------- Run | Scr Mat Min Mat Sto Gar Rec Fac Was Fac Low Low Zio Pro Fac Was Fac Low Low Dat Pro Fac Upp Upp Zhi Pro Fac Was Fac Ext Res Tes Combat Hostiles Destroyed 108 | . 5 . . 10 12 1 1 . 6 3 10 . 6 10 . . . 4 . 6 2 10 4 . . . . . 7 . 11 Melee 12 | . . . . . . . . . . . . . 1 . . . . . . . . 1 1 . . . . . 5 . 4 Guns 18 | . 3 . . 6 . . . . 4 . . . . 1 . . . . . . . . 1 . . . . . . . 3 Cannons 18 | . 2 . . 1 7 1 1 . 1 . . . . 3 . . . . . . . . . . . . . . . . 2 AOE 54 | . . . . 3 5 . . . . 3 10 . 5 6 . . . 4 . 5 2 9 1 . . . . . . . 1 Classes Destroyed 19 | . 3 . . 3 . 2 1 . . . 1 . 2 2 . . . . . . 2 1 . . . . . . . . 2 Worker 3 | . . . . . . . . . . . . . . . . . . . . . 1 . . . . 1 . . . . 1 Builder 2 | . . . . 1 . . . . . . . . . . . . . . . . . . . . . . . . 1 . . Hauler 8 | . 1 . . . . . 1 . 4 . . . . . . . . . . . . . . . . . . . . 1 1 Recycler 12 | . . . . . . 2 . . . . . . . 3 . . . . . . 1 . . . . . . . 5 . 1 Minesweeper 1 | . . . . . . . . . . . . . . . . . . . . . . 1 . . . . . . . . . Operator 2 | . . . . . . . 1 . . . . . . . . . . . . . . . . . . . . . 1 . . Drone 1 | . . . . . . 1 . . . . . . . . . . . . . . . . . . . . . . . . . Watcher 3 | . . . . . . . . . . . . . . 1 . . . . . . 1 . . . . . . . 1 . . Swarmer 35 | . 3 . . 2 8 . . . . 3 3 . . 3 . . . 1 . 5 . 5 . . . . . . . . 2 Grunt 32 | . 2 . . 4 4 . . . 2 . 5 . 2 5 . . . 1 . . 1 1 2 . . . . . 1 . 2 Brawler 3 | . . . . . . . . . . . 1 . . . . . . . . . . 2 . . . . . . . . . Duelist 5 | . . . . 1 . . . . 2 . . . 1 . . . . . . . . 1 . . . . . . . . . Protector 1 | . . . . . . . . . . . . . . . . . . . . . 1 . . . . . . . . . . Sentry 11 | . . . . 3 . . 1 . 2 . 1 . . . . . . . . . . 1 . . . . . . 3 . . Specialist 3 | . . . . . . . . . . . . . . . . . . . . . . . . . . . . . . . 3 Hunter 6 | . . . . . . . . . . . . . 2 . . . . 1 . . . . 2 . . . . . 1 . . Programmer 6 | . . . . . . . . . . . . . . 2 . . . 1 . . . . . . . . . . . . 3 Behemoth 4 | . . . . . . . . . . . . . 1 . . . . . . 1 . . . . . . . . 2 . . Alpha 7 1 | . . . . . . . . . . . . . . . . . . . . . . . . . . . . . . . 1 Decomposer 2 | . . . . . . . . . . . . . . . . . . . . . . 2 . . . . . . . . . Wasp 1 | . . . . . . . . . . . . . . . . . 1 . . . . . . . . . . . . . . Thug 2 | . . . . . . . . . 1 . . . . . . . . 1 . . . . . . . . . . . . . Butcher 1 | . . . . . . . . . . . . . . . . . . 1 . . . . . . . . . . . . . Best Kill Streak 7 | . 3 . . 4 7 3 2 . 2 3 7 . 5 7 . . . 4 . 3 4 5 2 . . 1 . . 3 1 3 Combat Bots Only 7 | . 3 . . 4 7 1 1 . 1 3 7 . 5 7 . . . 4 . 3 2 5 2 . . . . . 2 . 3 Max Kills in Single Turn 5 | . 2 . . 2 2 1 1 . 1 3 4 . 1 3 . . 1 2 . 3 3 5 1 . . 1 . . 1 1 1 Gunslinging . | . . . . . . . . . . . . . . . . . . . . . . . . . . . . . . . . Exploded 5 | . . . . 2 2 . . . . 3 4 . 1 3 . . . 2 . 3 2 5 1 . . . . . . . 1 Melee 1 | . . . . . . . . . . . . . 1 . . . . . . . . 1 1 . . . . . 1 . 1 Uniques/NPCs Destroyed . | . . . . . . . . . . . . . . . . . . . . . . . . . . . . . . . . Combat | -11 -10 -10 -9 -9 -9 -9 -7 -7 -7 -7 -7 -7 -6 -6 -6 -6 -6 -6 -6 -5 -5 -5 -5 -5 -4 -4 -4 -4 -4 -3 -3 -------- Run | Scr Mat Min Mat Sto Gar Rec Fac Was Fac Low Low Zio Pro Fac Was Fac Low Low Dat Pro Fac Upp Upp Zhi Pro Fac Was Fac Ext Res Tes Damage Taken 10572 | . 70 . . 1102 467 . 522 18 405 248 103 . 807 731 18 . . 18 . 109 479 413 525 . 17 . . 48 489 236 3747 Core 2544 | . 9 . . 221 111 . 40 . 74 27 10 . 86 85 . . . . . 32 131 73 130 . . . . . 142 . 1373 Absorbed by Shields 514 | . . . . . . . . . 94 . . . . 74 . . . . . . . 110 125 . . . . . 111 . . Redirected to Shielding 132 | . . . . . . . . . . . . . . . . . . . . . . . . . . . . . 27 105 . Regen/Repaired (Parts) 25 | . . . . . . . . . . . . . . 25 . . . . . . . . . . . . . . . . . Core Remaining (%) 74 | 100 . 96 . . . 17 . . . . . . 66 . . . . . . 86 . . . . 66 . . . 87 . . Volleys Fired 314 | . 12 . . 39 18 5 15 . 47 2 11 . 7 55 4 . 2 5 . 6 7 14 20 . . 3 . . 15 . 27 Largest 2 | . 2 . . 2 2 2 2 . 2 1 1 . 1 2 1 . 1 1 . 1 1 1 1 . . 1 . . 1 . 2 Hottest 200 | . 90 . . 101 80 70 91 . 162 48 46 . 46 81 5 . 46 46 . 46 46 46 75 . . 10 . . 10 . 200 Shots Fired 417 | . 24 . . 63 34 10 28 . 69 2 11 . 7 58 4 . 2 5 . 6 7 14 21 . . 3 . . 15 . 34 Gun 178 | . 20 . . 53 4 . 13 . 38 . . . . 17 . . . . . . . . 12 . . . . . . . 21 Cannon 143 | . 4 . . 10 26 10 15 . 29 1 . . . 35 . . . . . . . . . . . . . . . . 13 Launcher 60 | . . . . . 4 . . . . 1 11 . 7 5 . . 2 5 . 6 2 13 4 . . . . . . . . Special 36 | . . . . . . . . . 2 . . . . 1 4 . . . . . 5 1 5 . . 3 . . 15 . . Kinetic 160 | . 8 . . 10 26 10 13 . 29 1 . . . 47 . . . . . . . . 6 . . . . . . . 10 Thermal 97 | . 4 . . 8 . . 13 . 38 . . . . 4 . . . . . . . . 6 . . . . . . . 24 Explosive 60 | . . . . . 4 . . . . 1 11 . 7 5 . . 2 5 . 6 2 13 4 . . . . . . . . Electromagnetic 64 | . 12 . . 45 4 . 2 . . . . . . 1 . . . . . . . . . . . . . . . . . Robot Hit Streak 19 | . 5 . . 15 8 2 5 . 6 . . . . 11 2 . . . . . 4 5 6 . . 2 . . 17 . 19 Robot Miss Streak 7 | . 2 . . 7 3 2 3 . 3 . . . . 4 1 . . . . . 1 . 2 . . 2 . . . . 2 Penetration Max . | . . . . . . . . . . . . . . . . . . . . . . . . . . . . . . . . Secondary Targets 2 | . . . . 2 . . . . . . . . . . . . . . . . . . . . . . . . . . . Max Gunslinging Chain 1 | . . . . 1 . . . . . . . . . . . . . . . . . . . . . . . . . . . Shots Hit Robots 329 | . 16 . . 42 19 4 16 1 47 . . . 5 37 3 . . . . 1 7 13 16 . . 3 . . 47 6 46 Core Hits 271 | . 9 . . 26 14 3 6 . 20 3 21 . 13 30 . . 5 16 . 8 10 24 9 . . 1 . . 17 1 35 Critical Kills . | . . . . . . . . . . . . . . . . . . . . . . . . . . . . . . . . Critical Parts Destroyed 1 | . . . . . . . . . . . . . . . . . . . . . . . . . . . . . . . 1 Critical Strikes 16 | . . . . . 1 1 2 . 3 . . . 1 1 . . . . . . . 1 2 . . . . . 1 . 3 Burn 4 | . . . . . . . 1 . 1 . . . . . . . . . . . . . 2 . . . . . . . . Blast 8 | . . . . . 1 1 1 . 2 . . . . 1 . . . . . . . . . . . . . . . . 2 Smash 1 | . . . . . . . . . . . . . . . . . . . . . . . . . . . . . . . 1 Impale 3 | . . . . . . . . . . . . . 1 . . . . . . . . 1 . . . . . . 1 . . Melee Attacks 133 | . . . . . . . . 1 1 . . . 8 11 1 . . 1 . 1 7 12 10 . . 1 1 4 41 8 25 Impact 16 | . . . . . . . . . . . . . . . . . . . . . . . . . . . . . . . 16 Slashing . | . . . . . . . . . . . . . . . . . . . . . . . . . . . . . . . . Piercing 115 | . . . . . . . . . . . . . 8 11 1 . . 1 . 1 7 12 10 . . 1 1 4 41 8 9 Sneak Attacks 21 | . . . . . . . . 1 1 . . . . . . . . . . . 2 4 . . . 1 . . 7 1 4 Combat Hostiles 2 | . . . . . . . . 1 . . . . . . . . . . . . . . . . . . . . 1 . . Follow-up Attacks . | . . . . . . . . . . . . . . . . . . . . . . . . . . . . . . . . Damage Inflicted 17772 | . 207 . . 767 740 90 322 . 1107 197 1271 . 957 2016 . . 138 1060 . 972 733 1965 716 . . 86 . . 1529 271 2628 Guns 2388 | . 170 . . 600 61 . 134 . 619 . . . . 104 . . . . . . . . 142 . . . . . . . 558 Cannons 2941 | . 37 . . 31 281 72 182 . 487 . . . . 881 . . . . . . . . . . . . . . . . 970 Explosions 8609 | . . . . 136 398 . . . . 197 1271 . 789 1031 . . 138 1060 . 972 567 1508 339 . . . . . 53 . 150 Melee 3796 | . . . . . . . . . . . . . 168 . . . . . . . 166 457 235 . . 86 . . 1476 271 937 Ramming 38 | . . . . . . 18 6 . 1 . . . . . . . . . . . . . . . . . . . . . 13 Kinetic 2664 | . 89 . . 31 281 72 140 . 487 . . . . 977 . . . . . . . . 32 . . . . . . . 555 Thermal 2251 | . . . . 204 . . 134 . 619 . . . . 8 . . . . . . . . 110 . . . . . 53 . 1123 Explosive 8270 | . . . . . 398 . . . . 197 1271 . 789 1031 . . 138 1060 . 972 567 1508 339 . . . . . . . . Electromagnetic 753 | . 118 . . 532 61 . 42 . . . . . . . . . . . . . . . . . . . . . . . . Impact 634 | . . . . . . . . . . . . . . . . . . . . . . . . . . . . . . . 634 Slashing . | . . . . . . . . . . . . . . . . . . . . . . . . . . . . . . . . Piercing 3162 | . . . . . . . . . . . . . 168 . . . . . . . 166 457 235 . . 86 . . 1476 271 303 Highest Corruption 21 | . . . . . . . . . 2 2 2 2 . . 17 17 17 15 12 12 3 3 3 . . . 20 18 20 . 21 Average Corruption 6 | . . . . . . . . . 2 2 2 2 . . 11 17 16 12 12 12 2 3 2 . . . 10 17 18 . 8 Corruption Purged 16 | . . . . . . . . . . . . . . . . . 2 3 . . . . 3 . . . 7 1 . . . Corruption Blocked . | . . . . . . . . . . . . . . . . . . . . . . . . . . . . . . . . Effects 246 | . . . . . . . . . 9 8 8 3 . . 7 2 12 16 2 19 3 48 22 . . . 10 8 45 . 24 Message Errors 58 | . . . . . . . . . 3 1 2 1 . . 1 1 3 3 . 5 1 7 4 . . . 3 1 13 . 9 Matter Fused 57 | . . . . . . . . . 1 5 2 . . . 3 1 3 3 1 3 . 13 6 . . . 2 3 8 . 3 Heat Flow Errors 33 | . . . . . . . . . 2 . 1 . . . . . 3 2 . 5 . 6 4 . . . 1 . 7 . 2 Energy Discharges 33 | . . . . . . . . . 3 . . . . . . . 1 2 1 3 1 8 3 . . . . 1 9 . 1 Parts Rejected 5 | . . . . . . . . . . . . . . . . . . 1 . 1 . . . . . . . 1 . . 2 Data Loss (minor) 25 | . . . . . . . . . . 1 1 2 . . 2 . 2 2 . . 1 7 3 . . . . 1 3 . . Data Loss (major) 15 | . . . . . . . . . . 1 . . . . 1 . . 2 . 2 . 5 1 . . . . . 2 . 1 Misfires 2 | . . . . . . . . . . . . . . . . . . . . . . . 1 . . . . . . . 1 Alerts 6 | . . . . . . . . . . . 2 . . . . . . 1 . . . 2 . . . . . 1 . . . Misdirections 7 | . . . . . . . . . . . . . . . . . . . . . . . . . . . 4 . 3 . . Weapon Failures 5 | . . . . . . . . . . . . . . . . . . . . . . . . . . . . . . . 5 Overload Shots . | . . . . . . . . . . . . . . . . . . . . . . . . . . . . . . . . Overflow Damage 1145 | . . . . . 42 . 22 . 5 . 3 . 44 7 . . 20 48 . 37 77 48 113 . . . . . 78 . 601 Projectiles 361 | . . . . . 8 . 22 . 5 . . . . 1 . . . . . . . . . . . . . . . . 325 Explosions 229 | . . . . . 34 . . . . . 3 . 44 6 . . 20 48 . 37 . 32 5 . . . . . . . . Melee 555 | . . . . . . . . . . . . . . . . . . . . . 77 16 108 . . . . . 78 . 276 Knockbacks 25 | . . . . 2 2 1 1 . 6 . . . . 7 . . . . . . . . . . . . . . . . 6 Impact 4 | . . . . . . . . . . . . . . . . . . . . . . . . . . . . . . . 4 Kinetic 18 | . . . . 1 2 1 1 . 5 . . . . 7 . . . . . . . . . . . . . . . . 1 Secondary 3 | . . . . 1 . . . . 1 . . . . . . . . . . . . . . . . . . . . . 1 Self-Inflicted Damage 463 | . . . . 39 130 . . . . . 8 . . . . . . . . . . . . . . . . . 113 . 173 Shots 9 | . . . . 1 3 . . . . . 1 . . . . . . . . . . . . . . . . . 1 . 3 Rammed 3 | . . . . . . . . . 1 . . . . . . . . . . . . . . . . . . . . . 2 Targets Rammed 7 | . . . . . . 3 1 . 1 . . . . . . . . . . . . . . . . . . . . . 2 Kicked 4 | . . . . . . 3 1 . . . . . . . . . . . . . . . . . . . . . . . . Crushed . | . . . . . . . . . . . . . . . . . . . . . . . . . . . . . . . . Highest Temperature 428 | . 102 . . 398 148 24 19 . 286 . 111 . . 135 . . 213 133 21 428 16 210 291 . 35 . 213 15 309 162 244 Average Temperature 64 | . 35 . . 123 45 12 8 . 86 . 59 . . 32 . . 62 15 11 94 9 102 102 . 24 . 135 13 86 44 50 Received Heat Transfer 1980 | . 6 . . 267 93 . 126 . 118 24 18 . 108 162 . . . 9 . 12 27 83 87 . . . . . 60 . 780 Effects 2 | . . . . 1 . . . . . . . . . . . . . . . . . . . . . . 1 . . . . Energy Bleed 1 | . . . . . . . . . . . . . . . . . . . . . . . . . . . 1 . . . . Interference 1 | . . . . 1 . . . . . . . . . . . . . . . . . . . . . . . . . . . Siege Activations . | . . . . . . . . . . . . . . . . . . . . . . . . . . . . . . . . Robots Corrupted . | . . . . . . . . . . . . . . . . . . . . . . . . . . . . . . . . Combat Hostiles . | . . . . . . . . . . . . . . . . . . . . . . . . . . . . . . . . Parts Fried 7 | . . . . 2 . . . . . . . . . . . . . . . . . . . . . . . . 1 . 4 Impact Corruptions 4 | . . . . . . . . . . . . . . . . . . . . . . . . . . . . . . . 4 Robots Melted 2 | . . . . . . . . . 1 . . . . . . . . . . . . . 1 . . . . . . . . Combat Hostiles 2 | . . . . . . . . . 1 . . . . . . . . . . . . . 1 . . . . . . . . Parts Melted 5 | . . . . . . . . . 1 . . . . . . . . . . . . . 2 . . . . . 1 . 1 Heat Transferred 3707 | . . . . 298 . . 370 . 1017 . . . . 37 . . . . . . . . 450 . . . . . 50 . 1485 Parts Sabotaged . | . . . . . . . . . . . . . . . . . . . . . . . . . . . . . . . . Parts Stolen . | . . . . . . . . . . . . . . . . . . . . . . . . . . . . . . . . Parts Stripped . | . . . . . . . . . . . . . . . . . . . . . . . . . . . . . . . . Power Chain Reactions 3 | . . . . 2 1 . . . . . . . . . . . . . . . . . . . . . . . . . . Missiles Intercepted . | . . . . . . . . . . . . . . . . . . . . . . . . . . . . . . . . Alert | -11 -10 -10 -9 -9 -9 -9 -7 -7 -7 -7 -7 -7 -6 -6 -6 -6 -6 -6 -6 -5 -5 -5 -5 -5 -4 -4 -4 -4 -4 -3 -3 ------- Run | Scr Mat Min Mat Sto Gar Rec Fac Was Fac Low Low Zio Pro Fac Was Fac Low Low Dat Pro Fac Upp Upp Zhi Pro Fac Was Fac Ext Res Tes Peak Influence 1159 | . 181 70 . 319 657 521 1133 403 845 . . . . 354 130 91 . . . . 542 . . . . 14 21 33 1159 446 496 Initial 1075 | . . 70 . . 174 295 1075 403 100 . . . . 18 98 91 . . . . 215 . . . . 9 4 . 16 375 234 Average 364 | . 53 47 . 151 480 414 1100 315 643 . . . . 74 113 91 . . . . 467 . . . . 12 3 14 635 413 347 Maximum Alert Level 4 | . . . . 1 2 2 4 2 3 . . . . 1 . . . . . . 2 . . . . . . . 4 2 2 Low Security (%) 38 | 100 100 100 100 68 7 . . 33 3 . . . . 87 100 100 . . . . . . . . . 100 100 100 10 . . Level 1 17 | . . . . 31 37 36 . 11 9 . . . . 12 . . . . . . 8 . . . . . . . 3 24 65 Level 2 26 | . . . . . 55 63 . 55 33 . . . . . . . . . . . 91 . . . . . . . 38 75 34 Level 3 15 | . . . . . . . 50 . 52 . . . . . . . . . . . . . . . . . . . 43 . . Level 4 2 | . . . . . . . 49 . . . . . . . . . . . . . . . . . . . . . 4 . . Level 5 . | . . . . . . . . . . . . . . . . . . . . . . . . . . . . . . . . High Security . | . . . . . . . . . . . . . . . . . . . . . . . . . . . . . . . . Max Security . | . . . . . . . . . . . . . . . . . . . . . . . . . . . . . . . . Squads Dispatched 37 | . 2 . . 2 . . 1 . 11 . 1 . . 3 . 1 . . . . 4 . . . . 2 . 2 6 1 1 Investigation 16 | . . . . . . . 1 . 1 . . . . 1 . 1 . . . . 2 . . . . 2 . 2 5 1 . Extermination 4 | . . . . . . . . . 1 . . . . 2 . . . . . . . . . . . . . . . . 1 Reinforcement 11 | . 2 . . 2 . . . . 6 . . . . . . . . . . . . . . . . . . . 1 . . Assault 3 | . . . . . . . . . 1 . 1 . . . . . . . . . 1 . . . . . . . . . . Garrison 3 | . . . . . . . . . 2 . . . . . . . . . . . 1 . . . . . . . . . . Intercept . | . . . . . . . . . . . . . . . . . . . . . . . . . . . . . . . . Searches Triggered 2 | . . . . . . . . . . . . . . . . . . . . . . . . . . . . . . . 2 Data Miner Redirects 9 | . . . . . . . . . . . . . . . . . . . . . 2 . . . . 2 . . 4 1 . Construction Impeded 1 | . . . . . . . . . 1 . . . . . . . . . . . . . . . . . . . . . . Haulers Reinforced 2 | . . . . . . . . . 2 . . . . . . . . . . . . . . . . . . . . . . Active Scanning Responses . | . . . . . . . . . . . . . . . . . . . . . . . . . . . . . . . . Cargo Convoy Interrupts . | . . . . . . . . . . . . . . . . . . . . . . . . . . . . . . . . Stealth | -11 -10 -10 -9 -9 -9 -9 -7 -7 -7 -7 -7 -7 -6 -6 -6 -6 -6 -6 -6 -5 -5 -5 -5 -5 -4 -4 -4 -4 -4 -3 -3 --------- Run | Scr Mat Min Mat Sto Gar Rec Fac Was Fac Low Low Zio Pro Fac Was Fac Low Low Dat Pro Fac Upp Upp Zhi Pro Fac Was Fac Ext Res Tes Distress Signals 8 | . 1 . . 1 . . 1 . 1 . . . . . . . . . . . . . . . . . . . 1 1 2 Communications Jammed 2 | . . . . . . . . . . . . . . . . . . . . . . . . . . . . 2 . . . Distress Signals 2 | . . . . . . . . . . . . . . . . . . . . . . . . . . . . 2 . . . Times Spotted 297 | . 10 . . 20 16 29 3 2 38 1 6 . 1 22 3 . 4 5 . 5 11 5 14 . 3 . 6 7 34 7 45 Peak Tracking Total 14 | . 4 . . 7 4 8 2 1 5 1 7 . 3 7 2 . 4 5 . 2 6 4 4 . 3 . 4 6 7 7 14 Tactical Retreats 38 | . . . . 1 2 . . . . 1 2 . . 3 . . . . . . 2 . 9 . 1 . . 1 3 . 13 Traps | -11 -10 -10 -9 -9 -9 -9 -7 -7 -7 -7 -7 -7 -6 -6 -6 -6 -6 -6 -6 -5 -5 -5 -5 -5 -4 -4 -4 -4 -4 -3 -3 ------- Run | Scr Mat Min Mat Sto Gar Rec Fac Was Fac Low Low Zio Pro Fac Was Fac Low Low Dat Pro Fac Upp Upp Zhi Pro Fac Was Fac Ext Res Tes Traps Triggered 17 | . . . . 1 1 . 2 . 1 . . . . 1 . . . . . 1 2 . . . . 1 . 1 2 . 4 Indirectly . | . . . . . . . . . . . . . . . . . . . . . . . . . . . . . . . . Trap Hack Attempts . | . . . . . . . . . . . . . . . . . . . . . . . . . . . . . . . . Triggered . | . . . . . . . . . . . . . . . . . . . . . . . . . . . . . . . . Disarmed . | . . . . . . . . . . . . . . . . . . . . . . . . . . . . . . . . Reprogrammed . | . . . . . . . . . . . . . . . . . . . . . . . . . . . . . . . . Reused . | . . . . . . . . . . . . . . . . . . . . . . . . . . . . . . . . Traps Extracted . | . . . . . . . . . . . . . . . . . . . . . . . . . . . . . . . . Installed . | . . . . . . . . . . . . . . . . . . . . . . . . . . . . . . . . Triggered 4 | . . . . . . . . . . 1 1 . . . . . . . . 2 . . . . . . . . . . . Machines | -11 -10 -10 -9 -9 -9 -9 -7 -7 -7 -7 -7 -7 -6 -6 -6 -6 -6 -6 -6 -5 -5 -5 -5 -5 -4 -4 -4 -4 -4 -3 -3 ---------- Run | Scr Mat Min Mat Sto Gar Rec Fac Was Fac Low Low Zio Pro Fac Was Fac Low Low Dat Pro Fac Upp Upp Zhi Pro Fac Was Fac Ext Res Tes Machines Disabled 22 | . . . . 3 1 . . . 4 . 1 . . . . . . 1 . . 1 1 . . . . . . 7 . 3 Max in Single Turn 2 | . . . . 2 1 . . . 1 . 1 . . . . . . 1 . . 1 1 . . . . . . 1 . 1 Garrison Access 6 | . . . . . . . . . 1 . . . . 3 . . . . . . 1 . . . . . . . . . 1 Garrison Relay 1 | . . . . . 1 . . . . . . . . . . . . . . . . . . . . . . . . . . Energy Cycler 1 | . . . . . . . . . . . . . . . . . . . . . . . . . . . . . 1 . . Machines Sabotaged . | . . . . . . . . . . . . . . . . . . . . . . . . . . . . . . . . Garrisons Compromised . | . . . . . . . . . . . . . . . . . . . . . . . . . . . . . . . . Overloaded Fab Kills . | . . . . . . . . . . . . . . . . . . . . . . . . . . . . . . . . Hacking | -11 -10 -10 -9 -9 -9 -9 -7 -7 -7 -7 -7 -7 -6 -6 -6 -6 -6 -6 -6 -5 -5 -5 -5 -5 -4 -4 -4 -4 -4 -3 -3 --------- Run | Scr Mat Min Mat Sto Gar Rec Fac Was Fac Low Low Zio Pro Fac Was Fac Low Low Dat Pro Fac Upp Upp Zhi Pro Fac Was Fac Ext Res Tes Machines Accessed 71 | . 1 . . 5 . 10 3 . 9 . . . 1 9 . . 1 1 4 . 1 1 . 7 . 2 . 2 9 3 2 Terminals 33 | . 1 . . 3 . 5 2 . 6 . . . 1 3 . . . . . . . . . . . . . 1 8 2 1 Fabricators 7 | . . . . . . . 1 . 1 . . . . 1 . . . . . . . . . . . 2 . 1 . 1 . Repair Stations 2 | . . . . . . . . . . . . . . 1 . . . . . . . . . . . . . . 1 . . Recycling Units 8 | . . . . 1 . 5 . . 1 . . . . 1 . . . . . . . . . . . . . . . . . Scanalyzers . | . . . . . . . . . . . . . . . . . . . . . . . . . . . . . . . . Garrison Access 7 | . . . . 1 . . . . 1 . . . . 3 . . . . . . 1 . . . . . . . . . 1 Total Hacks 182 | . 3 . . 8 . 21 7 . 23 . . . 1 27 . . 1 1 29 . 3 1 . 20 . 5 . 5 20 5 2 Successful 110 | . 1 . . 5 . 11 3 . 7 . . . 1 15 . . 1 1 29 . 3 1 . 20 . 1 . 2 6 2 1 Failed 72 | . 2 . . 3 . 10 4 . 16 . . . . 12 . . . . . . . . . . . 4 . 3 14 3 1 Catastrophic 18 | . 1 . . 1 . 2 1 . 5 . . . . 2 . . . . . . . . . . . 1 . 1 2 1 1 Database Lockouts . | . . . . . . . . . . . . . . . . . . . . . . . . . . . . . . . . Manual 50 | . 3 . . . . 6 5 . 13 . . . . 10 . . . . . . 2 . . . . . . 3 8 . . Terminals 73 | . 3 . . 4 . 13 6 . 16 . . . 1 7 . . . . . . . . . . . . . 3 17 2 1 Fabricators 18 | . . . . . . . 1 . 3 . . . . 4 . . . . . . . . . . . 5 . 2 . 3 . Repair Stations 9 | . . . . . . . . . . . . . . 6 . . . . . . . . . . . . . . 3 . . Recycling Units 15 | . . . . 2 . 8 . . 2 . . . . 3 . . . . . . . . . . . . . . . . . Scanalyzers . | . . . . . . . . . . . . . . . . . . . . . . . . . . . . . . . . Garrison Access 15 | . . . . 2 . . . . 2 . . . . 7 . . . . . . 3 . . . . . . . . . 1 Terminal Hacks 68 | . 1 . . 2 . 3 1 . 3 . . . 1 . . . 1 1 29 . . 1 . 20 . . . . 4 1 . Record 21 | . . . . . . 1 . . . . . . 1 . . . . . 11 . . . . 8 . . . . . . . Part Schematic 18 | . . . . 1 . 2 . . 1 . . . . . . . . . 10 . . . . 4 . . . . . . . Robot Schematic 5 | . . . . . . . . . . . . . . . . . . . 5 . . . . . . . . . . . . Robot Analysis 4 | . . . . . . . . . . . . . . . . . . . . . . . . 4 . . . . . . . Prototype ID Bank 7 | . . . . . . . . . . . . . . . . . . . 3 . . . . 4 . . . . . . . Open Door 4 | . . . . 1 . . . . . . . . . . . . 1 1 . . . 1 . . . . . . . . . Branch Access Points 2 | . . . . . . . . . 1 . . . . . . . . . . . . . . . . . . . . 1 . Terminal Index 2 | . 1 . . . . . 1 . . . . . . . . . . . . . . . . . . . . . . . . Fabricator Index 1 | . . . . . . . . . 1 . . . . . . . . . . . . . . . . . . . . . . Unreport Threat 3 | . . . . . . . . . . . . . . . . . . . . . . . . . . . . . 3 . . Security Status 1 | . . . . . . . . . . . . . . . . . . . . . . . . . . . . . 1 . . Fabricator Hacks 6 | . . . . . . . . . . . . . . 2 . . . . . . . . . . . 1 . 2 . 1 . Load Schematic 4 | . . . . . . . . . . . . . . 1 . . . . . . . . . . . 1 . 1 . 1 . Build 2 | . . . . . . . . . . . . . . 1 . . . . . . . . . . . . . 1 . . . Repair Station Hacks 5 | . . . . . . . . . . . . . . 4 . . . . . . . . . . . . . . 1 . . Scan Component 2 | . . . . . . . . . . . . . . 1 . . . . . . . . . . . . . . 1 . . Repair 1 | . . . . . . . . . . . . . . 1 . . . . . . . . . . . . . . . . . Refit 2 | . . . . . . . . . . . . . . 2 . . . . . . . . . . . . . . . . . Recycling Unit Hacks 5 | . . . . 2 . 3 . . . . . . . . . . . . . . . . . . . . . . . . . Report Inventory 4 | . . . . 1 . 3 . . . . . . . . . . . . . . . . . . . . . . . . . Retrieve Components 1 | . . . . 1 . . . . . . . . . . . . . . . . . . . . . . . . . . . Scanalyzer . | . . . . . . . . . . . . . . . . . . . . . . . . . . . . . . . . Garrison Access Hacks 11 | . . . . 1 . . . . 2 . . . . 6 . . . . . . 1 . . . . . . . . . 1 Unlock Access 1 | . . . . 1 . . . . . . . . . . . . . . . . . . . . . . . . . . . Seal Access 5 | . . . . . . . . . 1 . . . . 3 . . . . . . . . . . . . . . . . 1 Coupler Status 5 | . . . . . . . . . 1 . . . . 3 . . . . . . 1 . . . . . . . . . . Unauthorized Hacks 15 | . . . . . . 5 2 . 2 . . . . 3 . . . . . . 2 . . . . . . . 1 . . Terminals 6 | . . . . . . . 1 . 2 . . . . 2 . . . . . . . . . . . . . . 1 . . Botnet 5 | . . . . . . . 1 . 2 . . . . 2 . . . . . . . . . . . . . . . . . Sabotage 1 | . . . . . . . . . . . . . . . . . . . . . . . . . . . . . 1 . . Fabricators 2 | . . . . . . . 1 . . . . . . 1 . . . . . . . . . . . . . . . . . Fabnet 1 | . . . . . . . . . . . . . . 1 . . . . . . . . . . . . . . . . . Download 1 | . . . . . . . 1 . . . . . . . . . . . . . . . . . . . . . . . . Repair Stations . | . . . . . . . . . . . . . . . . . . . . . . . . . . . . . . . . Recycling Units 5 | . . . . . . 5 . . . . . . . . . . . . . . . . . . . . . . . . . Tunnel 5 | . . . . . . 5 . . . . . . . . . . . . . . . . . . . . . . . . . Scanalyzers . | . . . . . . . . . . . . . . . . . . . . . . . . . . . . . . . . Garrison Access 2 | . . . . . . . . . . . . . . . . . . . . . 2 . . . . . . . . . . Restock 1 | . . . . . . . . . . . . . . . . . . . . . 1 . . . . . . . . . . Reprogram 1 | . . . . . . . . . . . . . . . . . . . . . 1 . . . . . . . . . . Data Cores Recovered . | . . . . . . . . . . . . . . . . . . . . . . . . . . . . . . . . Used . | . . . . . . . . . . . . . . . . . . . . . . . . . . . . . . . . Hacking Detections 42 | . 1 . . 1 . 7 2 . 7 . . . . 6 . . . . . . 1 . . . . 2 . 2 9 3 1 Full Trace Events 13 | . . . . . . 2 . . 1 . . . . 1 . . . . . . 1 . . . . 2 . 2 3 1 . Feedback Events 1 | . . . . . . . . . . . . . . . . . . . . . . . . . . . . . 1 . . Corruption 1 | . . . . . . . . . . . . . . . . . . . . . . . . . . . . . 1 . . Feedback Blocked . | . . . . . . . . . . . . . . . . . . . . . . . . . . . . . . . . Robot Schematics Acquired 5 | . . . . . . . . . . . . . . . . . . . 5 . . . . . . . . . . . . Robots Built . | . . . . . . . . . . . . . . . . . . . . . . . . . . . . . . . . Authchips . | . . . . . . . . . . . . . . . . . . . . . . . . . . . . . . . . Time . | . . . . . . . . . . . . . . . . . . . . . . . . . . . . . . . . Total Robot Build Rating . | . . . . . . . . . . . . . . . . . . . . . . . . . . . . . . . . Part Schematics Acquired 19 | . . . . 1 . 2 1 . 1 . . . . . . . . . 10 . . . . 4 . . . . . . . Parts Built 4 | . . . . . . . . . . . . . . 2 . . . . . . . . . . . . . 2 . . . Authchips . | . . . . . . . . . . . . . . . . . . . . . . . . . . . . . . . . Time 234 | . . . . . . . . . . . . . . 117 . . . . . . . . . . . . . 117 . . . Total Part Build Rating 28 | . . . . . . . . . . . . . . 14 . . . . . . . . . . . . . 14 . . . Parts Repaired 1 | . . . . . . . . . . . . . . 1 . . . . . . . . . . . . . . . . . Time 44 | . . . . . . . . . . . . . . 44 . . . . . . . . . . . . . . . . . Parts Recycled . | . . . . . . . . . . . . . . . . . . . . . . . . . . . . . . . . Recycled Matter . | . . . . . . . . . . . . . . . . . . . . . . . . . . . . . . . . Retrieved Matter . | . . . . . . . . . . . . . . . . . . . . . . . . . . . . . . . . Retrieved Components 3 | . . . . 3 . . . . . . . . . . . . . . . . . . . . . . . . . . . Parts Scanalyzed . | . . . . . . . . . . . . . . . . . . . . . . . . . . . . . . . . Part Schematics Acquired . | . . . . . . . . . . . . . . . . . . . . . . . . . . . . . . . . Parts Damaged . | . . . . . . . . . . . . . . . . . . . . . . . . . . . . . . . . Bothacking | -11 -10 -10 -9 -9 -9 -9 -7 -7 -7 -7 -7 -7 -6 -6 -6 -6 -6 -6 -6 -5 -5 -5 -5 -5 -4 -4 -4 -4 -4 -3 -3 ------------ Run | Scr Mat Min Mat Sto Gar Rec Fac Was Fac Low Low Zio Pro Fac Was Fac Low Low Dat Pro Fac Upp Upp Zhi Pro Fac Was Fac Ext Res Tes Used RIF Installer 1 | . . . . . 1 . . . . . . . . . . . . . . . . . . . . . . . . . . Robots Hacked 15 | . . . . . . . . . 3 . . . . 1 4 . . . . . 2 2 3 . . . . . . . . Non-combat 3 | . . . . . . . . . 1 . . . . 1 . . . . . . . 1 . . . . . . . . . Combat 12 | . . . . . . . . . 2 . . . . . 4 . . . . . 2 1 3 . . . . . . . . Robot Hacks Applied 14 | . . . . . . . . . 3 . . . . 1 4 . . . . . 2 1 3 . . . . . . . . parse_system 2 | . . . . . . . . . 1 . . . . . . . . . . . . 1 . . . . . . . . . find_recycling 1 | . . . . . . . . . . . . . . 1 . . . . . . . . . . . . . . . . . ignore_targets 3 | . . . . . . . . . . . . . . . 3 . . . . . . . . . . . . . . . . overload_power 1 | . . . . . . . . . . . . . . . 1 . . . . . . . . . . . . . . . . disable_weapons 2 | . . . . . . . . . 1 . . . . . . . . . . . . . 1 . . . . . . . . overwrite_iff 3 | . . . . . . . . . . . . . . . . . . . . . 2 . 1 . . . . . . . . formatsys_high 2 | . . . . . . . . . 1 . . . . . . . . . . . . . 1 . . . . . . . . Relay Couplers Released 17 | . . . . . 5 . . . . . . . . 5 . . . . . . 7 . . . . . . . . . . Machine Destruction 13 | . . . . . 5 . . . . . . . . 5 . . . . . . 3 . . . . . . . . . . Programmers 4 | . . . . . . . . . . . . . . . . . . . . . 4 . . . . . . . . . . Attached 5 | . . . . . . . . . 1 . . . . 1 . . . . . . 2 . 1 . . . . . . . . Fabnet Peak Effective % 3 | . . . . . . . . . . . . . . . . . . . . 3 3 3 3 3 1 1 1 1 1 . . Autooverrided 1 | . . . . . . . . . . . . . . . . . . . . . . 1 . . . . . . . . . Robots Rewired 18 | . . . . . . . . . . . 2 . . . . . . 3 . . . 1 . . . 1 . . 11 . . Allies Hacked 1 | . . . . . . . . . . . . . . . . . . . . . 1 . . . . . . . . . . Hacks Repelled . | . . . . . . . . . . . . . . . . . . . . . . . . . . . . . . . . Allies | -11 -10 -10 -9 -9 -9 -9 -7 -7 -7 -7 -7 -7 -6 -6 -6 -6 -6 -6 -6 -5 -5 -5 -5 -5 -4 -4 -4 -4 -4 -3 -3 -------- Run | Scr Mat Min Mat Sto Gar Rec Fac Was Fac Low Low Zio Pro Fac Was Fac Low Low Dat Pro Fac Upp Upp Zhi Pro Fac Was Fac Ext Res Tes Total Allies 95 | . . 2 . . . . . 20 1 . 2 . . . 19 . . 3 . 1 6 2 2 . . 1 19 . 17 . . Largest Group 20 | . . 2 2 2 . . . 20 17 . 2 2 1 . 19 15 15 14 10 11 12 1 1 . . 1 20 . 12 . . Highest-Rated Group 731 | . . 42 42 42 . . . 508 460 . 48 48 16 . 702 602 602 546 340 436 417 29 47 . . 47 731 . 604 . . Highest-Rated Ally 159 | . . 31 31 31 . . . 35 35 . 32 32 16 . 50 50 50 50 46 96 96 29 47 . . 47 50 . 159 . . Total Orders 3 | . . . . . . . . . . . 3 . . . . . . . . . . . . . . . . . . . . STAY 2 | . . . . . . . . . . . 2 . . . . . . . . . . . . . . . . . . . . FOLLOW 1 | . . . . . . . . . . . 1 . . . . . . . . . . . . . . . . . . . . Ally Attacks 697 | . . . . 10 . . . 37 235 . 3 . 1 . 81 . 18 46 . 31 31 2 7 . . . 68 . 127 . . Total Damage 18672 | . . . . 127 . . . 680 4088 . 63 . 16 . 3221 . 1225 1613 . 706 733 18 140 . . . 2393 . 3649 . . Kills 107 | . . . . 3 . . . 2 31 . 2 . . . 9 . 7 10 . 7 4 . . . . . 6 . 26 . . Allies Corrupted 2 | . . . . . . . . . . . . . . . . . . . . . 2 . . . . . . . . . . Allies Melted 1 | . . . . . . . . . . . . . . . . . . . . . 1 . . . . . . . . . . Intel | -11 -10 -10 -9 -9 -9 -9 -7 -7 -7 -7 -7 -7 -6 -6 -6 -6 -6 -6 -6 -5 -5 -5 -5 -5 -4 -4 -4 -4 -4 -3 -3 ------- Run | Scr Mat Min Mat Sto Gar Rec Fac Was Fac Low Low Zio Pro Fac Was Fac Low Low Dat Pro Fac Upp Upp Zhi Pro Fac Was Fac Ext Res Tes Robot Analysis Total 4 | . . . . . . . . . . . . . . . . . . . . . . . . 4 . . . . . . . Derelict Logs Recovered 13 | . . 2 . . . . . . . 2 1 . 1 . . . 1 . . 2 . 1 1 . 2 . . . . . . Drone Launches . | . . . . . . . . . . . . . . . . . . . . . . . . . . . . . . . . Drone Recoveries . | . . . . . . . . . . . . . . . . . . . . . . . . . . . . . . . . Decoded 0b10 Intel 45 | . . . . . . . . . . . . . . . . . . . . . 14 . . . . 6 10 11 4 . . Items 45 | . . . . . . . . . . . . . . . . . . . . . 14 . . . . 6 10 11 4 . . Exploration | -11 -10 -10 -9 -9 -9 -9 -7 -7 -7 -7 -7 -7 -6 -6 -6 -6 -6 -6 -6 -5 -5 -5 -5 -5 -4 -4 -4 -4 -4 -3 -3 ------------- Run | Scr Mat Min Mat Sto Gar Rec Fac Was Fac Low Low Zio Pro Fac Was Fac Low Low Dat Pro Fac Upp Upp Zhi Pro Fac Was Fac Ext Res Tes Turns Passed 18639 | 57 318 593 22 570 836 497 343 600 1853 527 623 299 603 1648 172 61 344 402 53 492 234 2919 1672 373 119 72 200 191 956 133 857 Spaces Moved 14852 | 43 180 454 15 261 556 395 226 344 1174 420 377 228 318 1317 217 57 380 432 84 611 208 1234 699 326 390 125 393 278 1479 440 1191 Core 151 | 4 . . . . . . . . . . . . . . . . . . . . . . 85 . . . . . 2 . 60 Treads 1323 | . . . . . . . . 143 492 . . . . . . . . . . . . . 559 129 . . . . . . . Legs 5849 | 39 180 454 15 261 556 395 226 201 682 420 377 228 318 481 . . . . . . . 925 55 . . . . . . . 36 Wheels 20 | . . . . . . . . . . . . . . . . . . . . . . . . . . 20 . . . . . Hover 3257 | . . . . . . . . . . . . . . 836 217 57 380 432 84 611 208 309 . . . . . 2 39 . 82 Flight 4252 | . . . . . . . . . . . . . . . . . . . . . . . . 197 390 105 393 276 1438 440 1013 Fastest Speed 7 | 50 120 120 120 120 120 120 120 120 120 120 120 120 123 34 38 38 34 34 34 34 34 120 50 29 20 29 25 15 17 7 7 Average Speed 95 | 113 120 120 120 154 123 120 122 164 140 120 152 128 130 74 38 38 37 34 34 55 72 221 214 102 28 43 27 25 24 14 29 Slowest Speed 650 | 120 120 120 120 260 190 120 190 240 240 120 190 190 195 350 38 38 38 102 34 102 360 540 650 635 29 110 29 120 200 19 270 Overloaded Moves 331 | . . . . . . . . . . . . . . . . . . . . . . . . . 27 . . 3 46 56 199 Propulsion Burnouts . | . . . . . . . . . . . . . . . . . . . . . . . . . . . . . . . . Robots Hopped 30 | . . . . . . . . . . . . . . . . . . . . . . . . . 2 2 . . 5 2 19 Cave-ins Triggered . | . . . . . . . . . . . . . . . . . . . . . . . . . . . . . . . . Exploration Rate (%) 49 | 3 32 92 3 45 48 87 9 97 33 64 47 13 50 23 88 3 51 74 75 78 8 96 73 63 57 4 95 6 94 16 70 Regions Visited 31 Branch Regions 17 Pre-discovered Areas 11 | . . . . . . 5 . . . 1 . . . . . . . . 1 . . . 1 3 . . . . . . . Known Exits Taken 19 | . . . . 1 . . . . 1 1 1 1 1 . . 1 1 1 1 1 1 1 1 1 1 . . 1 1 1 . Unknown Exits Taken 5 | 1 1 1 1 . . 1 . . . . . . . . . . . . . . . . . . . . . . . . . Scrap Searched 18 | . . 1 . . . . . . . 1 1 1 1 . . . 5 2 . 1 . 2 2 . 1 . . . . . . Spaces Dug 15 | . . . . . . . . . 1 1 . . . 1 1 . . . . . 1 . 1 . . . 1 4 . 1 3 Terrain Destroyed 783 | . . . . 19 6 . . . 4 24 116 . 60 65 1 . 31 80 . 74 25 170 55 . . . 1 4 23 1 24 Melee 13 | . . . . . . . . . . . . . . 1 1 . . . . . 1 . 1 . . . 1 4 . 1 3 Projectile 9 | . . . . . . . . . 4 1 . . . 2 . . . . . . . . . . . . . . . . 2 AOE 761 | . . . . 19 6 . . . . 23 116 . 60 62 . . 31 80 . 74 24 170 54 . . . . . 23 . 19 Terrain Rammed . | . . . . . . . . . . . . . . . . . . . . . . . . . . . . . . . . Walls Destroyed . | . . . . . . . . . . . . . . . . . . . . . . . . . . . . . . . . Machines Disabled . | . . . . . . . . . . . . . . . . . . . . . . . . . . . . . . . . Actions | -11 -10 -10 -9 -9 -9 -9 -7 -7 -7 -7 -7 -7 -6 -6 -6 -6 -6 -6 -6 -5 -5 -5 -5 -5 -4 -4 -4 -4 -4 -3 -3 --------- Run | Scr Mat Min Mat Sto Gar Rec Fac Was Fac Low Low Zio Pro Fac Was Fac Low Low Dat Pro Fac Upp Upp Zhi Pro Fac Was Fac Ext Res Tes Total 18672 | 48 257 502 19 365 671 408 266 382 1317 441 414 235 479 1914 303 95 581 678 107 756 279 1383 839 371 395 138 482 389 2046 505 1607 Wait 2426 | . 45 48 2 18 55 4 3 5 33 9 3 . 135 429 73 39 182 225 24 113 19 72 58 . 2 . 80 96 400 24 230 Move 14767 | 42 179 453 14 260 555 394 226 343 1173 419 376 227 317 1317 216 56 379 431 83 610 207 1233 698 325 385 121 392 277 1468 435 1156 Hop 27 | . . . . . . . . . . . . . . . . . . . . . . . . . 2 2 . . 5 2 16 Pick Up 143 | . 9 1 . 10 12 1 8 8 15 1 1 . . 18 2 . 2 2 . . 3 1 14 6 . 1 . . 4 8 16 Fast Attach 193 | 6 5 . . 10 2 . 1 6 9 2 3 3 3 11 1 . 3 2 . 7 6 16 11 10 3 5 4 7 17 3 37 Attach 101 | . . . 3 6 4 . 5 1 7 2 3 . 1 11 . . 2 3 . 3 2 4 6 2 . 1 . 1 6 6 22 Detach 60 | . . . . 1 1 . . 1 1 1 2 . 1 7 . . 1 1 . 3 1 3 2 3 . . . 1 4 7 19 Swap 121 | . 2 . . 9 9 . 2 . 7 2 1 1 4 29 2 . 2 . . 6 5 6 9 1 . 2 1 1 9 7 4 Drop 259 | . 5 . . 12 10 1 5 17 22 3 4 4 3 26 4 . 8 2 . 7 9 12 10 24 3 2 4 2 20 5 35 Fire 314 | . 12 . . 39 18 5 15 . 47 2 11 . 7 55 4 . 2 5 . 6 7 14 20 . . 3 . . 15 . 27 Melee 132 | . . . . . . . . 1 1 . . . 8 11 1 . . 1 . 1 7 12 10 . . 1 1 4 40 8 25 Ram 2 | . . . . . . . . . . . . . . . . . . . . . . . . . . . . . . . 2 Kick 4 | . . . . . . 3 1 . . . . . . . . . . . . . . . . . . . . . . . . Crush 1 | . . . . . . . . . 1 . . . . . . . . . . . . . . . . . . . . . . Escape Stasis 72 | . . . . . 5 . . . . . . . . . . . . . . . 13 . . . . . . . 36 . 18 Rewire 50 | . . . . . . . . . 1 . 10 . . . . . . 6 . . . 10 1 . . . . . 22 . . Trap . | . . . . . . . . . . . . . . . . . . . . . . . . . . . . . . . . Miscellaneous . | . . . . . . . . . . . . . . . . . . . . . . . . . . . . . . . . Route ------- -11/Scrapyard -10/Materials -10/Mines (discovered 2 exits: [*Mat x2]) -9/Materials (discovered 2 exits: Min / *Sto) -9/Storage -9/Garrison -9/Recycling -7/Factory -7/Waste -7/Factory (discovered 2 exits: *Low x2) -7/Lower Caves -7/Lower Caves -7/Zion -6/Proximity Caves -6/Factory (discovered 2 exits: Fac / *Low) -6/Waste -6/Factory -6/Lower Caves -6/Lower Caves (discovered 2 exits: *Fac / *Dat) -6/Data Miner -5/Proximity Caves -5/Factory -5/Upper Caves -5/Upper Caves (discovered 2 exits: *Fac / *Zhi) -5/Zhirov -4/Proximity Caves -4/Factory -4/Waste -4/Factory (discovered 2 exits: *Res / *Ext) -4/Extension (discovered 3 exits: *Res x2 / [*Cet]) -3/Research (discovered 4 exits: [*Res] / Arm / *Tes x2) -3/Testing History --------- Turn | Location | Event 3 | -11/Scrapyard | Discovered new exit (range 16) 58 | -11/Scrapyard | Entered Materials 154 | -10/Materials | Discovered new exit (range 6) 329 | -10/Materials | Build established: Mutant 376 | -10/Materials | Entered Mines 380 | -10/Mines | Discovered new exit (range 8) 433 | -10/Mines | Met a Derelict bent on vengeance 610 | -10/Mines | Learned Materials trap positions 816 | -10/Mines | Discovered new exit (range 4) 969 | -10/Mines | Entered Materials 969 | -9/Materials | Accompanied by 2 allies 969 | -9/Materials | Evolved 2 slots: Utility x2 970 | -9/Materials | Identified exit to Mines 971 | -9/Materials | Discovered new exit (range 15) 971 | -9/Materials | Loaded intel: 9 trap records 974 | -9/Materials | Led the pair of lost Derelicts to an unsafe place 991 | -9/Materials | Entered Storage 991 | -9/Storage | Accompanied by 2 allies 1331 | -9/Storage | Lost 6 parts (1n2u3w) 1435 | -9/Storage | Core integrity fell below 50% 1559 | -9/Storage | Identified exit to Garrison 1561 | -9/Storage | Entered Garrison 1606 | -9/Garrison | Triggered checkpoint 1657 | -9/Garrison | Garrison Relay disabled 1944 | -9/Garrison | Triggered checkpoint 1960 | -9/Garrison | Core integrity fell below 20% 1980 | -9/Garrison | Destroyed 7 combat bots 2001 | -9/Garrison | Discovered new exit (range 12) 2023 | -9/Garrison | Installed Relay Interface Framework 2397 | -9/Garrison | Entered Recycling 2425 | -9/Recycling | Spotter reported a threat 2430 | -9/Recycling | Spotter reported a threat 2470 | -9/Recycling | Spotter reported a threat 2473 | -9/Recycling | Spotter reported a threat 2477 | -9/Recycling | Spotter reported a threat 2484 | -9/Recycling | Spotter reported a threat 2484 | -9/Recycling | Spotter reported a threat 2488 | -9/Recycling | Spotter reported a threat 2505 | -9/Recycling | Spotter reported a threat 2507 | -9/Recycling | Spotter reported a threat 2523 | -9/Recycling | Spotter reported a threat 2530 | -9/Recycling | Spotter reported a threat 2537 | -9/Recycling | Spotter reported a threat 2541 | -9/Recycling | Spotter reported a threat 2543 | -9/Recycling | Spotter reported a threat 2553 | -9/Recycling | Spotter reported a threat 2560 | -9/Recycling | Spotter reported a threat 2576 | -9/Recycling | Spotter reported a threat 2586 | -9/Recycling | Spotter reported a threat 2623 | -9/Recycling | Spotter reported a threat 2683 | -9/Recycling | Spotter reported a threat 2685 | -9/Recycling | Spotter reported a threat 2692 | -9/Recycling | Spotter reported a threat 2696 | -9/Recycling | Spotter reported a threat 2703 | -9/Recycling | Spotter reported a threat 2708 | -9/Recycling | Spotter reported a threat 2743 | -9/Recycling | Discovered new exit (range 5) 2779 | -9/Recycling | Spotter reported a threat 2814 | -9/Recycling | Spotter reported a threat 2829 | -9/Recycling | Spotter reported a threat 2832 | -9/Recycling | Spotter reported a threat 2838 | -9/Recycling | Spotter reported a threat 2852 | -9/Recycling | Spotter reported a threat 2867 | -9/Recycling | Spotter reported a threat 2882 | -9/Recycling | Spotter reported a threat 2894 | -9/Recycling | Entered Factory 2894 | -7/Factory | Evolved 4 slots: Propulsion x1, Utility x3 3201 | -7/Factory | Build established: Scavenger-Mutant 3237 | -7/Factory | Sucked down chute 3237 | -7/Factory | Entered Waste 3238 | -7/Waste | Joined by Warlord forces that had cleared the area 3570 | -7/Waste | A Compactor rumbled back to life 3571 | -7/Waste | Allies destroyed C-40 Crusher 3612 | -7/Waste | Discovered new exit (range 12) 3660 | -7/Waste | A Compactor rumbled back to life 3660 | -7/Waste | Spotted C-40 Crusher 3665 | -7/Waste | Allies destroyed C-40 Crusher 3738 | -7/Waste | Found Broken Imp. Powered Armor 3750 | -7/Waste | Found Damper Plating 3837 | -7/Waste | Entered Factory 3837 | -7/Factory | Accompanied by 17 allies 4142 | -7/Factory | Discovered new exit (range 12) 4145 | -7/Factory | Identified exit to Lower Caves 5037 | -7/Factory | First assault squad dispatched 5690 | -7/Factory | Entered Lower Caves 5749 | -7/Lower Caves | Learned 4 Factory zone layouts 5900 | -7/Lower Caves | Spotted B-75 Beast 6084 | -7/Lower Caves | Learned location of Zion (-7) 6148 | -7/Lower Caves | Discovered new exit (range 12) 6163 | -7/Lower Caves | Identified exit to Lower Caves 6217 | -7/Lower Caves | Entered another Lower Caves area 6223 | -7/Lower Caves | Learned 4 Factory zone layouts 6280 | -7/Lower Caves | Attracted the attention of an 0b10 outpost 6318 | -7/Lower Caves | Destroyed 7 combat bots 6343 | -7/Lower Caves | Build established: Scavenger-Skirmisher 6479 | -7/Lower Caves | Attracted the attention of an 0b10 checkpoint 6770 | -7/Lower Caves | Discovered new exit (range 8) 6836 | -7/Lower Caves | Identified exit to Zion 6840 | -7/Lower Caves | Entered Zion 6840 | -7/Zion | Accompanied by 2 allies 6891 | -7/Zion | Found CR-A16's Pointy Stick 6904 | -7/Zion | Discovered new exit (range 15) 7004 | -7/Zion | System corruption cleaned by Quarantine Array 7138 | -7/Zion | Identified exit to Proximity Caves 7139 | -7/Zion | Entered Proximity Caves 7139 | -6/Proximity Caves | Accompanied by 1 ally 7383 | -6/Proximity Caves | Identified exit to Factory 7478 | -6/Proximity Caves | Build established: Skirmisher 7634 | -6/Proximity Caves | Spotted B-75 Beast 7673 | -6/Proximity Caves | Revealed the true nature of CR-A16's Pointy Stick 7673 | -6/Proximity Caves | Destroyed B-75 Beast 7742 | -6/Proximity Caves | Entered Factory 7742 | -6/Factory | Evolved 2 slots: Propulsion x2 7743 | -6/Factory | Identified exit to Factory 8330 | -6/Factory | Fabricated Imp. Linear Gravjet? 9147 | -6/Factory | Repaired Imp. Shield Generator? 9182 | -6/Factory | Discovered new exit (range 10) 9226 | -6/Factory | Destroyed 7 combat bots 9390 | -6/Factory | Sucked down chute 9390 | -6/Factory | Entered Waste 9397 | -6/Waste | Spotted C-40 Crusher 9405 | -6/Waste | EMP discharged 9410 | -6/Waste | Spotted C-40 Crusher 9419 | -6/Waste | Spotted C-40 Crusher 9432 | -6/Waste | Build established: Mutant 9455 | -6/Waste | Met Warlord forces unprepared to attack 9461 | -6/Waste | Allies destroyed C-40 Crusher 9464 | -6/Waste | Spotted C-40 Crusher 9465 | -6/Waste | Spotted C-40 Crusher 9466 | -6/Waste | Allies destroyed C-40 Crusher 9470 | -6/Waste | Allies destroyed C-40 Crusher 9474 | -6/Waste | Allies destroyed C-40 Crusher 9485 | -6/Waste | Spotted C-40 Crusher 9505 | -6/Waste | EMP discharged 9505 | -6/Waste | System corruption reached 10% 9507 | -6/Waste | Discovered new exit (range 10) 9519 | -6/Waste | Identified exit to Factory 9562 | -6/Waste | Entered Factory 9562 | -6/Factory | Accompanied by 15 allies 9583 | -6/Factory | Discovered new exit (range 8) 9586 | -6/Factory | Identified exit to Lower Caves 9623 | -6/Factory | Entered Lower Caves 9623 | -6/Lower Caves | Accompanied by 15 allies 9693 | -6/Lower Caves | Learned Factory garrison access intel 9781 | -6/Lower Caves | Found Prototype Device 9939 | -6/Lower Caves | Discovered new exit (range 14) 9943 | -6/Lower Caves | Identified exit to Lower Caves 9967 | -6/Lower Caves | Entered another Lower Caves area 9967 | -6/Lower Caves | Accompanied by 13 allies 9975 | -6/Lower Caves | Discovered exit to Factory (range 10) 9991 | -6/Lower Caves | Attacked by a delusional Derelict stockpiling Unaware 10204 | -6/Lower Caves | Build established: Scout 10327 | -6/Lower Caves | Discovered new exit (range 7) 10349 | -6/Lower Caves | Identified exit to Data Miner 10369 | -6/Lower Caves | Entered Data Miner 10369 | -6/Data Miner | Accompanied by 10 allies 10369 | -6/Data Miner | Discovered new exit (range 6) 10374 | -6/Data Miner | Met Data Miner 10383 | -6/Data Miner | Learned location of Section 7 (-2) 10383 | -6/Data Miner | Acquired the access code to Warlord's prototype stash 10390 | -6/Data Miner | Received God Mode back door access code from Data Miner 10397 | -6/Data Miner | Identified exit to Proximity Caves 10422 | -6/Data Miner | Entered Proximity Caves 10422 | -5/Proximity Caves | Accompanied by 10 allies 10432 | -5/Proximity Caves | Learned 4 Factory zone layouts 10511 | -5/Proximity Caves | Spotted B-75 Beast 10512 | -5/Proximity Caves | Destroyed B-75 Beast 10513 | -5/Proximity Caves | Escorted by Enhanced Grunt 10914 | -5/Proximity Caves | Entered Factory 10914 | -5/Factory | Accompanied by 8 allies 10914 | -5/Factory | Evolved 2 slots: Power x1, Propulsion x1 10916 | -5/Factory | Loaded intel: 4 garrison access locations 10942 | -5/Factory | Incoming investigation squad redirected 10956 | -5/Factory | Incoming assault squad redirected 11101 | -5/Factory | Discovered new exit (range 15) 11145 | -5/Factory | Identified exit to Upper Caves 11148 | -5/Factory | Entered Upper Caves 11311 | -5/Upper Caves | Encountered a Warlord checkpoint 11421 | -5/Upper Caves | Build established: Assassin 11791 | -5/Upper Caves | Attracted the attention of an 0b10 checkpoint 12709 | -5/Upper Caves | Attracted the attention of an 0b10 outpost 13047 | -5/Upper Caves | Discovered new exit (range 10) 13062 | -5/Upper Caves | Identified exit to Upper Caves 13478 | -5/Upper Caves | Build established: Scavenger-Assassin 13573 | -5/Upper Caves | Learned Factory stockpile data 14067 | -5/Upper Caves | Entered another Upper Caves area 14067 | -5/Upper Caves | Accompanied by 1 ally 14348 | -5/Upper Caves | Lost 5 parts (2n2u1w) 14681 | -5/Upper Caves | Build established: Assassin 15086 | -5/Upper Caves | Discovered new exit (range 6) 15099 | -5/Upper Caves | Identified exit to Factory 15573 | -5/Upper Caves | Encountered a Warlord checkpoint 15731 | -5/Upper Caves | Discovered new exit (range 6) 15738 | -5/Upper Caves | Identified exit to Zhirov 15739 | -5/Upper Caves | Entered Zhirov 15739 | -5/Zhirov | Discovered new exit (range 3) 15768 | -5/Zhirov | Met Zhirov 15815 | -5/Zhirov | Learned location of Quarantine (-2) 15815 | -5/Zhirov | Learned location of Testing (-3) 15815 | -5/Zhirov | Learned location of Command (-1) 15847 | -5/Zhirov | Zhirov requested help retrieving the SGEMP Prototype 15914 | -5/Zhirov | Found Alien Artifact 15914 | -5/Zhirov | Identified Integrated Reactor 15914 | -5/Zhirov | Installed Integrated Reactor, increased core energy generation (+10) 16111 | -5/Zhirov | Identified exit to Proximity Caves 16112 | -5/Zhirov | Entered Proximity Caves 16179 | -4/Proximity Caves | Learned Research stockpile data 16228 | -4/Proximity Caves | Discovered exit to Factory (range 10) 16229 | -4/Proximity Caves | Learned Research terminal intel 16231 | -4/Proximity Caves | Entered Factory 16231 | -4/Factory | Evolved 2 slots: Propulsion x1, Utility x1 16264 | -4/Factory | Incoming investigation squad redirected 16292 | -4/Factory | Incoming investigation squad redirected 16303 | -4/Factory | Sucked down chute 16303 | -4/Factory | Entered Waste 16307 | -4/Waste | Found Prototype Device 16307 | -4/Waste | Identified System Purifier 16313 | -4/Waste | Spotted C-40 Crusher 16318 | -4/Waste | EMP discharged 16319 | -4/Waste | Met Warlord forces unprepared to attack 16325 | -4/Waste | 1 allies followed down the chute 16331 | -4/Waste | Build established: Scout 16393 | -4/Waste | Spotted C-40 Crusher 16397 | -4/Waste | Spotted C-40 Crusher 16407 | -4/Waste | Spotted C-40 Crusher 16407 | -4/Waste | Spotted C-40 Crusher 16415 | -4/Waste | Spotted C-40 Crusher 16415 | -4/Waste | Discovered new exit (range 13) 16418 | -4/Waste | EMP discharged 16418 | -4/Waste | System corruption reached 10% 16502 | -4/Waste | Identified exit to Factory 16503 | -4/Waste | Entered Factory 16612 | -4/Factory | Discovered new exit (range 5) 16613 | -4/Factory | Identified exit to Research 16635 | -4/Factory | Fabricated Field Propulsion Array? 16692 | -4/Factory | Discovered new exit (range 12) 16694 | -4/Factory | Identified exit to Extension 16694 | -4/Factory | Entered Extension 16697 | -4/Extension | Disrupted transfer network 16708 | -4/Extension | Rescued A7 16765 | -4/Extension | Rescued a captive Derelict 16777 | -4/Extension | Incoming investigation squad redirected 16836 | -4/Extension | Rescued a captive Derelict 16836 | -4/Extension | Rescued a captive Derelict 16931 | -4/Extension | Rescued a captive Derelict 16948 | -4/Extension | Rescued a captive Derelict 17100 | -4/Extension | Build established: Commander-Sprinter 17135 | -4/Extension | Spotted B-86 Titan 17231 | -4/Extension | Spotted B-86 Titan 17232 | -4/Extension | Destroyed B-86 Titan 17234 | -4/Extension | Destroyed B-86 Titan 17267 | -4/Extension | Rescued a captive Derelict 17274 | -4/Extension | Energy Cycler disabled 17279 | -4/Extension | Rescued a captive Derelict 17279 | -4/Extension | Rescued a captive Derelict 17284 | -4/Extension | Discovered exit to Research (range 15) 17437 | -4/Extension | Incoming investigation squad redirected 17439 | -4/Extension | Incoming investigation squad redirected 17445 | -4/Extension | Incoming investigation squad redirected 17626 | -4/Extension | Discovered new exit (range 16) 17626 | -4/Extension | Discovered exit to Research (range 15) 17650 | -4/Extension | Entered Research 17650 | -3/Research | Evolved 2 slots: Propulsion x2 17652 | -3/Research | Loaded intel: 22 terminal locations 17674 | -3/Research | Incoming investigation squad redirected 17682 | -3/Research | Identified exit to Armory 17682 | -3/Research | Identified exit to Testing 17736 | -3/Research | Build established: Scavenger-Sprinter 17773 | -3/Research | Discovered new exit (range 11) 17783 | -3/Research | Entered Testing 17813 | -3/Testing | Lost 4 parts (1n3u) 17829 | -3/Testing | Found Prototype Ballistic Cannon 17829 | -3/Testing | Identified Perforator 17857 | -3/Testing | Found Prototype Slashing Weapon 17857 | -3/Testing | Identified Nanosword 17938 | -3/Testing | Found Unknown Device 17938 | -3/Testing | Identified Antimissile System 17980 | -3/Testing | Found Prototype Device 17980 | -3/Testing | Identified Exp. Thermal Defense Suite 17985 | -3/Testing | Spotted PD-AU3MCWXYGS 17996 | -3/Testing | Spotted Striker 17997 | -3/Testing | Spotted Striker 18018 | -3/Testing | Found Prototype Energy Cannon 18033 | -3/Testing | Search patrols dispatched 18104 | -3/Testing | Spotted Alpha 7 18179 | -3/Testing | Found Prototype Device 18179 | -3/Testing | Identified Exp. Hardlight Generator 18408 | -3/Testing | Lost 7 parts (5n2u) 18417 | -3/Testing | System corruption reached 10% 18445 | -3/Testing | Core integrity fell below 50% 18506 | -3/Testing | Destroyed Alpha 7 18510 | -3/Testing | Lost 7 parts (1n4u2w) 18533 | -3/Testing | Search patrols dispatched 18548 | -3/Testing | Core integrity fell below 20% 18561 | -3/Testing | Identified Potential Cannon 18610 | -3/Testing | Lost 4 parts (2u2w) 18625 | -3/Testing | Found Prototype Slashing Weapon 18625 | -3/Testing | Identified Molecular Scythe 18640 | -3/Testing | Destroyed self with Potential Cannon Last Messages --------------- 18588_ Acquired 17 matter. 18592_ U-05 Engineer lays Concrete. 18593_ U-05 Engineer builds a Wall. 18594_ Acquired 77 matter. 18595_ U-05 Engineer lays Concrete. 18596_ U-05 Engineer builds a Wall. 18596_ U-05 Engineer lays Concrete. 18603_ Acquired 62 matter. 18613_ 186X L0XLYJ#Z